bitfinex/quotes_ETHUSD_20260307
["timestamp","ask_amount","ask_price","bid_price","bid_amount"]
[1772914330694,0.001,1964.9,1964.5,7.72048987]
[1772914340429,0.001,1964.9,1964.6,6.44680143]
[1772914342234,0.001,1964.9,1964.7,7.71926032]
[1772914344052,0.001,1964.8,1964.7,7.71926032]
[1772914344766,0.001,1964.8,1964.7,1.27245889]
[1772914345039,5.93839796,1964.8,1964.6,1.27357379]
[1772914346033,0.001,1964.8,1964.6,7.72037522]
[1772914346235,5.93739796,1965.1,1964.7,6.44680143]
[1772914346420,5.93739796,1965.1,1964.8,1.27239413]
[1772914348425,5.93739796,1965.1,1964.7,5.08974437]
[1772914350953,5.93739796,1965.0,1964.7,5.08974437]
[1772914351120,5.93739796,1965.0,1964.6,0.0011]
[1772914351318,5.93739796,1965.0,1964.6,1.27359129]
[1772914351743,5.93739796,1965.0,1964.6,1.2735852]
[1772914352264,5.93739796,1965.0,1964.6,7.72038663]
[1772914354049,5.93739796,1965.0,1964.6,1.2735852]
[1772914355140,5.93739796,1965.0,1964.6,0.0011]
[1772914356044,5.93739796,1965.0,1964.6,6.05534871]
[1772914357054,5.93739796,1965.0,1964.6,7.32785507]
[1772914357750,6.31013174,1964.9,1964.6,7.32785507]
[1772914359233,6.31013174,1964.9,1964.6,0.0011]
[1772914359624,6.31013174,1964.9,1964.6,1.27362221]
[1772914359853,6.31013174,1964.9,1964.6,0.0011]
[1772914360630,6.31013174,1964.9,1964.6,1.27361616]
[1772914362756,6.31013174,1964.9,1964.6,7.32786487]
[1772914362934,1.944,1964.8,1964.6,7.32786487]
[1772914369465,1.944,1964.8,1964.7,0.0011]
[1772914369963,1.945,1964.8,1964.7,0.0011]
[1772914370764,6.31013174,1964.9,1964.7,6.05534871]
[1772914370765,0.001,1964.9,1964.7,6.05534871]
[1772914371058,8.25513174,1964.9,1964.7,0.0011]
[1772914372339,6.30913174,1964.8,1964.7,0.0011]
[1772914378365,1.946,1964.9,1964.7,0.0011]
[1772914378535,8.25513174,1964.9,1964.7,0.0011]
[1772914381487,0.001,1964.8,1964.7,0.0011]
[1772914382068,6.308023,1964.8,1964.7,0.0011]
[1772914384062,0.001,1964.8,1964.7,0.0011]
[1772914384566,1.948,1964.8,1964.7,0.0011]
[1772914386573,8.01733855,1964.8,1964.7,0.0011]
[1772914393677,1.949,1964.9,1964.7,6.31184368]
[1772914395369,1.949,1964.9,1964.7,0.0011]
[1772914397068,5.81656845,1964.8,1964.7,0.0011]
[1772914405575,5.81656845,1964.8,1964.4,5.09169691]
[1772914405576,7.08896332,1964.8,1964.4,0.0011]
[1772914405775,5.81656845,1964.8,1964.4,1.27375245]
[1772914406583,7.08863887,1965.3,1964.4,7.58449613]
[1772914406782,5.81656845,1965.1,1964.4,7.58449613]
[1772914408990,7.08878419,1965.1,1964.4,7.58449613]
[1772914411802,7.08878419,1965.1,1964.4,1.27375245]
[1772914411968,7.08878419,1965.1,1964.4,1.27374931]
[1772914412491,7.08878419,1965.1,1964.4,7.15156861]
[1772914412996,7.08878419,1965.1,1964.4,0.0011]
[1772914416502,5.81656845,1964.9,1964.4,0.0011]
[1772914417004,5.81656845,1964.7,1964.4,0.0011]
[1772914417306,7.77056845,1964.6,1964.5,0.0011]
[1772914418102,7.77056845,1964.6,1964.4,0.0011]
[1772914418103,5.81656845,1964.5,1964.3,0.0011]
[1772914419299,7.08917701,1964.5,1964.3,0.0011]
[1772914424902,5.9963612,1964.8,1964.4,5.8778193]
[1772914424903,5.81656845,1964.8,1964.4,5.8778193]
[1772914425099,0.001,1965.0,1964.4,5.8778193]
[1772914425100,1.957,1964.7,1964.4,5.8778193]
[1772914425896,7.77356845,1964.7,1964.4,5.8778193]
[1772914426081,9.04602964,1964.7,1964.4,5.8778193]
[1772914426699,5.81656845,1964.6,1964.3,0.0011]
[1772914427978,5.81656845,1964.6,1964.3,5.8789193]
[1772914428478,7.08909976,1964.6,1964.3,0.0011]
[1772914428678,5.81656845,1964.6,1964.3,0.0011]
[1772914429013,5.81656845,1964.6,1964.4,0.0011]
[1772914432611,5.81656845,1964.6,1964.2,1.2738468]
[1772914432907,5.81656845,1964.6,1964.2,1.27387822]
[1772914433084,5.81656845,1964.6,1964.2,1.27386784]
[1772914433288,7.08909711,1964.6,1964.2,0.0011]
[1772914436023,5.81656845,1964.6,1964.2,0.0011]
[1772914436910,7.08909305,1964.6,1964.2,0.0011]
[1772914437208,7.08909305,1964.6,1964.2,5.8789193]
[1772914438322,2.17928727,1964.6,1964.2,0.0011]
[1772914438502,5.81546845,1964.5,1964.0,0.00153886]
[1772914438803,5.81546845,1964.3,1964.0,0.00153886]
[1772914439006,7.77946845,1964.2,1964.0,0.00153886]
[1772914439608,5.81546845,1964.1,1964.0,0.00153886]
[1772914440992,5.81546845,1964.1,1964.0,0.00263886]
[1772914442212,1.966,1964.1,1964.0,6.44923073]
[1772914442414,1.966,1964.2,1964.1,6.00403334]
[1772914443187,1.967,1964.4,1964.1,6.00403334]
[1772914444312,1.967,1964.4,1964.2,1.27278281]
[1772914444502,1.967,1964.4,1964.2,6.00403334]
[1772914451319,6.37163722,1964.3,1964.0,6.0066722]
[1772914451890,3.23967545,1964.4,1963.6,0.0011]
[1772914452119,3.23967545,1964.4,1963.6,7.27830494]
[1772914452120,6.37163722,1964.0,1963.6,7.27830494]
[1772914452291,8.34263722,1964.0,1963.6,7.27830494]
[1772914452493,6.37163722,1963.9,1963.1,6.00403334]
[1772914452902,1.967,1963.8,1963.1,6.00403334]
[1772914453109,8.33863722,1963.8,1963.3,6.00403334]
[1772914455119,1.967,1963.8,1963.3,6.00403334]
[1772914455319,6.37163722,1963.7,1963.1,7.27752934]
[1772914456507,7.27891362,1963.7,1963.1,6.00403334]
[1772914457511,1.27317172,1963.6,1963.1,7.27751417]
[1772914457725,6.37163722,1963.5,1963.0,6.0055722]
[1772914457913,6.37163722,1963.5,1963.0,7.27909183]
[1772914459637,7.64493446,1963.5,1963.0,7.27909183]
[1772914462120,7.64493446,1963.5,1963.0,6.0055722]
[1772914462321,7.64493446,1963.5,1963.0,7.27911552]
[1772914463723,7.64493446,1963.5,1963.0,7.27911841]
[1772914464943,7.64493446,1963.5,1963.1,0.0011]
[1772914465119,7.64493446,1963.5,1963.1,6.00513334]
[1772914468334,6.37163722,1963.5,1963.1,7.27860178]
[1772914468534,7.64487724,1963.5,1963.1,7.27860178]
[1772914469960,7.64487724,1963.5,1963.1,6.00513334]
[1772914473449,7.64487724,1963.5,1963.1,0.0011]
[1772914474329,7.64487724,1963.5,1963.1,6.38124244]
[1772914474869,7.64487724,1963.5,1963.1,0.0011]
[1772914475040,5.90344599,1963.4,1963.0,0.00263886]
[1772914476163,5.90344599,1963.2,1963.0,0.00263886]
[1772914477470,5.90344599,1963.2,1963.1,0.0011]
[1772914477639,5.90344599,1963.2,1962.8,0.0011]
[1772914478362,5.90344599,1963.0,1962.8,0.0011]
[1772914478566,1.273496,1963.1,1962.8,6.38124244]
[1772914478840,7.17694199,1963.1,1962.8,6.38124244]
[1772914482241,1.27347677,1963.2,1962.8,6.38124244]
[1772914482956,7.17692276,1963.2,1962.8,6.38124244]
[1772914484646,1.27347677,1963.2,1962.8,6.38124244]
[1772914484881,7.17692276,1963.2,1962.8,6.38124244]
[1772914489174,7.17692276,1963.2,1962.9,0.0011]
[1772914498287,1.273496,1963.1,1962.9,0.0011]
[1772914499785,7.17694199,1963.1,1962.9,0.0011]
[1772914499986,3.26031593,1963.4,1963.0,6.03185814]
[1772914500677,1.987,1963.4,1963.0,6.03185814]
[1772914501075,0.001,1963.1,1963.0,6.03185814]
[1772914501385,0.001,1963.6,1963.0,6.03185814]
[1772914501386,3.26018788,1963.6,1963.0,6.03185814]
[1772914501690,3.26018788,1963.6,1963.0,7.30537228]
[1772914501860,9.20631466,1963.6,1963.0,7.30537228]
[1772914502863,1.987,1963.6,1963.0,7.30537228]
[1772914503782,3.26017902,1963.6,1963.0,7.30537228]
[1772914506086,3.26017902,1963.6,1963.0,6.03185814]
[1772914506087,6.20112509,1963.5,1963.0,6.03185814]
[1772914506258,6.20112509,1963.5,1963.0,7.30538857]
[1772914506772,3.26017902,1963.6,1963.0,7.30538857]
[1772914507171,9.46130411,1963.6,1963.0,7.30538857]
[1772914507370,8.18812509,1963.6,1963.0,7.30538857]
[1772914507576,1.987,1963.6,1963.0,7.30538857]
[1772914510787,0.001,1963.6,1963.0,7.30538857]
[1772914511113,0.90955994,1964.0,1963.0,7.30538857]
[1772914511114,0.00153886,1964.0,1963.1,6.37425465]
[1772914511389,0.00153886,1964.0,1963.2,6.37425465]
[1772914511590,7.47559076,1964.0,1963.2,6.37425465]
[1772914511764,6.20112509,1963.9,1963.2,6.37425465]
[1772914513288,7.47413861,1963.9,1963.4,6.37425465]
[1772914513489,0.001,1963.5,1963.4,6.37425465]
[1772914515599,0.001,1963.5,1963.4,7.64755606]
[1772914516098,0.00153886,1964.0,1963.5,6.37425465]
[1772914516700,6.20266395,1964.0,1963.5,6.37425465]
[1772914517804,0.00153886,1964.0,1963.7,6.37425465]
[1772914518502,6.20266395,1964.0,1963.7,6.37425465]
[1772914520978,0.00153886,1964.0,1963.7,6.37425465]
[1772914524117,6.20266395,1964.0,1963.7,6.37425465]
[1772914524802,6.20266395,1964.0,1963.6,1.27317172]
[1772914525108,6.20266395,1964.0,1963.6,7.64852637]
[1772914525289,0.001,1963.9,1963.6,7.64852637]
[1772914526706,6.20212509,1963.9,1963.6,7.64852637]
[1772914527684,6.20212509,1963.9,1963.6,7.6485258]
[1772914527884,6.20212509,1963.9,1963.6,6.37535465]
[1772914528227,6.20212509,1963.9,1963.6,7.64850798]
[1772914533631,6.20212509,1963.9,1963.6,6.37535465]
[1772914533936,6.46051852,1963.7,1963.3,0.0011]
[1772914534118,6.46051852,1963.6,1963.3,0.0011]
[1772914534715,6.46051852,1963.6,1963.0,0.0011]
[1772914534716,6.7134061,1963.1,1963.0,0.0011]
[1772914534915,6.7134061,1963.1,1962.9,0.0011]
[1772914535149,0.25288758,1963.1,1962.9,6.06037481]
[1772914537868,0.25288758,1963.1,1963.0,0.0011]
[1772914540167,6.46051852,1963.3,1963.0,0.0011]
[1772914541939,6.46051852,1963.3,1963.0,6.06037481]
[1772914544687,7.73388926,1963.3,1963.0,6.06037481]
[1772914545846,7.73388926,1963.3,1963.0,0.0011]
[1772914547567,6.46051852,1963.3,1963.0,6.06037481]
[1772914547967,7.73389334,1963.3,1963.0,6.06037481]
[1772914548370,6.46051852,1963.5,1963.0,6.06037481]
[1772914548754,1.99,1963.6,1963.0,6.06037481]
[1772914548965,1.99,1963.6,1963.2,6.05927481]
[1772914549247,9.72369652,1963.6,1963.2,6.05927481]
[1772914549447,9.72369652,1963.6,1963.0,0.0011]
[1772914549448,0.90802108,1963.4,1963.0,0.0011]
[1772914549654,6.46051852,1963.3,1963.0,0.0011]
[1772914549952,6.46051852,1963.3,1963.1,0.0011]
[1772914550995,7.73369652,1963.6,1963.1,6.06037481]
[1772914555698,7.73369652,1963.6,1963.1,0.0011]
[1772914556205,7.73369652,1963.6,1963.1,6.06037481]
[1772914557997,7.73369652,1963.6,1963.1,0.0011]
[1772914558198,6.46051852,1963.4,1963.0,0.0011]
[1772914558375,6.46051852,1963.4,1963.0,6.06037481]
[1772914560303,1.27336627,1963.3,1963.0,6.06037481]
[1772914560525,7.01350014,1963.3,1963.0,0.0011]
[1772914560697,5.74013387,1963.0,1962.7,0.0011]
[1772914561209,5.74013387,1963.0,1962.7,5.9193546]
[1772914562000,4.17538735,1963.3,1963.0,5.9193546]
[1772914562001,3.26736627,1963.3,1963.0,5.9193546]
[1772914562300,9.00750014,1963.3,1963.0,5.9193546]
[1772914562542,5.77609241,1963.2,1963.0,0.0011]
[1772914563498,3.26736931,1963.3,1963.0,5.93852159]
[1772914564201,5.77609241,1963.2,1963.0,0.0011]
[1772914564405,5.77609241,1963.2,1962.9,5.93742159]
[1772914564603,7.04957067,1963.2,1962.9,5.93742159]
[1772914570345,5.77609241,1963.0,1962.6,5.93742159]
[1772914570511,5.77609241,1962.8,1962.3,4.42138594]
[1772914570714,1.27347826,1963.2,1962.2,4.41615286]
[1772914570715,5.77609241,1963.0,1962.2,4.41615286]
[1772914570918,0.90802108,1963.1,1962.4,4.41505286]
[1772914570919,1.997,1963.1,1962.4,4.41505286]
[1772914571303,7.77309241,1963.1,1962.4,4.41505286]
[1772914572539,9.04660772,1963.1,1962.6,4.7451983]
[1772914572745,5.77609241,1963.0,1962.4,6.00207259]
[1772914572928,6.6847171,1963.0,1962.5,4.72813749]
[1772914573510,5.77609241,1963.0,1962.5,4.72813749]
[1772914574242,5.77609241,1963.0,1962.9,0.0011]
[1772914574441,9.04760772,1963.1,1962.9,0.0011]
[1772914574610,5.77609241,1963.0,1962.9,0.0011]
[1772914579655,7.04965328,1963.0,1962.7,0.0011]
[1772914584765,9.04763665,1963.1,1962.7,4.55617827]
[1772914585059,3.2715034,1963.1,1962.7,4.55617827]
[1772914585286,9.04759581,1963.1,1962.7,4.55617827]
[1772914586186,9.04759581,1963.1,1962.8,4.54110617]
[1772914586392,0.001,1963.0,1962.8,4.54110617]
[1772914589389,0.001,1963.0,1962.8,5.81474434]
[1772914589592,0.001,1963.0,1962.9,4.49535749]
[1772914589997,0.001,1963.1,1962.9,4.49535749]
[1772914590492,0.001,1963.1,1963.0,4.47981133]
[1772914596607,2.91362469,1963.6,1963.1,4.38073117]
[1772914596608,8.93721195,1963.6,1963.1,4.38073117]
[1772914596980,5.65699385,1963.5,1963.1,4.38073117]
[1772914597881,6.93025228,1963.5,1963.1,4.38183117]
[1772914604015,6.93025228,1963.5,1963.1,5.65532325]
[1772914604922,6.93025228,1963.5,1963.2,4.26201694]
[1772914605694,1.27321584,1963.6,1963.2,4.26201694]
[1772914605906,8.93915328,1963.7,1963.2,4.26201694]
[1772914606514,5.65699385,1963.6,1963.3,4.24934355]
[1772914610721,6.93017537,1963.6,1963.3,4.24934355]
[1772914610927,0.001,1963.5,1963.3,4.24934355]
[1772914614547,0.001,1963.8,1963.4,4.15687069]
[1772914614838,0.001,1963.9,1963.4,4.15687069]
[1772914614839,0.001,1963.9,1963.6,4.14398842]
[1772914617137,0.001,1963.9,1963.8,4.12589424]
[1772914618933,0.001,1963.9,1963.7,4.10264691]
[1772914619661,0.001,1963.9,1963.7,5.37575241]
[1772914620162,0.001,1963.9,1963.8,4.0797097]
[1772914620459,5.46208908,1964.4,1963.9,4.0787097]
[1772914621753,5.46208908,1964.4,1964.0,1.27291242]
[1772914622066,0.001,1964.4,1964.1,4.06090057]
[1772914623949,0.001,1964.4,1964.2,4.0323248]
[1772914625559,0.001,1964.4,1964.1,1.27280003]
[1772914625560,5.59063745,1964.8,1964.4,4.02142288]
[1772914626239,5.59063745,1964.8,1964.5,5.28318136]
[1772914626440,5.59063745,1964.8,1964.5,4.01059292]
[1772914627354,6.86297128,1964.9,1964.5,4.01059292]
[1772914627544,5.59063745,1964.9,1964.5,4.01059292]
[1772914627945,6.86297277,1964.9,1964.5,4.01059292]
[1772914628450,5.59063745,1964.9,1964.5,5.28317672]
[1772914628861,5.59063745,1964.9,1964.6,3.97863593]
[1772914630289,1.27384624,1965.0,1964.6,3.97863593]
[1772914630290,6.86448369,1965.0,1964.6,3.97863593]
[1772914631556,0.00153886,1965.0,1964.6,3.97863593]
[1772914631767,0.00153886,1965.0,1964.7,3.93223155]
[1772914632368,5.59217631,1965.0,1964.7,3.93223155]
[1772914635692,0.001,1964.9,1964.7,3.93223155]
[1772914639596,5.59163745,1964.9,1964.6,1.2725085]
[1772914639776,5.59163745,1964.9,1964.6,3.84269544]
[1772914642789,5.59163745,1964.9,1964.6,5.11520336]
[1772914645610,0.001,1964.9,1964.7,3.79016958]
[1772914646896,0.001,1964.9,1964.7,5.06257438]
[1772914647293,0.001,1964.9,1964.8,3.77167015]
[1772914647494,5.59063745,1965.3,1964.9,3.77167015]
[1772914648078,5.59063745,1965.5,1964.9,3.77167015]
[1772914649581,5.59063745,1965.5,1965.1,3.75348749]
[1772914649808,1.27184952,1965.7,1965.1,3.75348749]
[1772914649809,5.59063745,1965.6,1965.1,3.75348749]
[1772914649998,5.59063745,1965.7,1965.1,3.75348749]
[1772914651622,5.59063745,1965.5,1965.0,3.73547689]
[1772914651792,5.59063745,1965.5,1965.0,5.00772776]
[1772914652125,5.59063745,1965.5,1965.1,3.72657762]
[1772914653434,6.4973483,1965.5,1964.7,4.96366569]
[1772914653595,5.44048864,1965.3,1964.7,4.96366569]
[1772914653996,5.44048864,1965.3,1964.8,3.68141094]
[1772914656429,5.44048864,1965.1,1964.8,3.68141094]
[1772914657128,5.44048864,1965.1,1964.8,4.95379624]
[1772914657496,5.44048864,1965.1,1964.8,3.68141094]
[1772914658930,5.44048864,1965.0,1964.7,0.0011]
[1772914659111,5.44048864,1965.0,1964.5,0.0011]
[1772914660115,5.44048864,1964.8,1964.1,0.0011]
[1772914660518,5.44048864,1964.6,1964.1,3.63270333]
[1772914660733,5.44048864,1964.4,1964.1,0.0011]
[1772914661736,5.44048864,1964.4,1964.1,3.61630818]
[1772914663916,6.71317482,1964.4,1964.1,0.0011]
[1772914664918,1.27264146,1964.5,1964.1,3.59192699]
[1772914665117,6.7131301,1964.5,1964.1,3.59192699]
[1772914667038,6.7131301,1964.5,1964.1,0.0011]
[1772914668244,6.7131301,1964.5,1964.1,3.56289555]
[1772914670438,5.44048864,1964.4,1964.0,0.00263886]
[1772914671316,5.44048864,1964.4,1964.0,4.8152505]
[1772914671742,5.44048864,1964.6,1964.1,3.53209263]
[1772914673419,6.71306478,1964.6,1964.1,4.8060199]
[1772914673619,0.001,1964.4,1964.1,4.8060199]
[1772914677254,0.001,1964.4,1964.1,4.76858387]
[1772914678661,0.001,1964.4,1964.2,3.48722664]
[1772914679228,0.001,1964.4,1964.3,3.47991134]
[1772914680764,5.51196347,1964.4,1964.1,0.0011]
[1772914681461,6.78461736,1964.4,1964.1,0.0011]
[1772914684162,5.51196347,1964.4,1964.1,0.0011]
[1772914684761,5.41298555,1964.4,1964.1,3.43743715]
[1772914685260,6.68564182,1964.4,1964.1,3.43743715]
[1772914685663,5.41298555,1964.4,1964.1,3.43743715]
[1772914686260,5.41298555,1964.4,1964.2,0.0011]
[1772914696677,6.68564223,1964.4,1964.2,0.0011]
[1772914698387,0.001,1964.3,1964.2,0.0011]
[1772914698546,5.41298555,1964.3,1964.2,0.0011]
[1772914699495,6.68570356,1964.3,1964.1,0.0011]
[1772914699661,0.001,1964.3,1964.0,3.33076291]
[1772914701459,2.6706463,1964.5,1964.1,6.49557062]
[1772914706670,3.94324645,1964.5,1964.1,5.22273938]
[1772914707500,3.94324645,1964.5,1964.1,6.49557985]
[1772914708595,2.6706463,1964.5,1964.1,6.49557985]
[1772914710598,2.6706463,1964.5,1964.2,0.0011]
[1772914711006,0.001,1964.4,1964.2,0.0011]
[1772914715473,5.3747837,1964.4,1964.2,0.0011]
[1772914718879,0.001,1964.4,1964.2,5.17112473]
[1772914721279,0.001,1964.4,1964.3,6.44274274]
[1772914722809,0.001,1964.4,1964.3,6.44384274]
[1772914724510,5.3737837,1964.9,1964.4,5.17002473]
[1772914728009,6.64614755,1964.9,1964.4,6.44263597]
[1772914731213,5.3737837,1964.9,1964.4,6.44263597]
[1772914731384,6.64611919,1964.9,1964.4,6.44263597]
[1772914734110,6.64611919,1964.9,1964.5,0.0011]
[1772914734491,5.3737837,1964.7,1964.5,0.0011]
[1772914735033,6.2809759,1964.7,1964.3,0.0011]
[1772914735192,5.3737837,1964.7,1964.3,0.0011]
[1772914736284,1.27252366,1964.6,1964.3,0.0011]
[1772914736513,5.3737837,1964.5,1964.3,0.0011]
[1772914737423,5.3737837,1964.5,1964.2,0.0011]
[1772914737424,6.2809759,1964.5,1964.2,0.0011]
[1772914737600,5.3737837,1964.5,1964.0,0.00263886]
[1772914739010,5.3737837,1964.3,1964.0,0.00263886]
[1772914740219,5.22101643,1964.6,1964.0,5.07013953]
[1772914742519,6.49358292,1964.6,1964.1,1.27284761]
[1772914742719,6.49358292,1964.6,1964.2,5.34064533]
[1772914742922,6.60116433,1964.8,1964.2,5.34064533]
[1772914745325,6.60116433,1964.8,1964.2,6.61336778]
[1772914746425,6.60116433,1964.8,1964.3,0.0011]
[1772914746740,6.60116433,1964.8,1964.4,5.34064533]
[1772914747725,0.001,1964.8,1964.4,6.61325965]
[1772914749621,0.001,1964.8,1964.3,1.27378405]
[1772914749622,6.60113187,1964.8,1964.3,1.27378405]
[1772914749821,6.60113187,1964.8,1964.3,5.34174533]
[1772914755731,6.60113187,1964.8,1964.3,6.61440595]
[1772914756332,6.60113187,1964.8,1964.2,1.27387756]
[1772914756514,6.60113187,1964.8,1964.2,6.61452289]
[1772914758432,6.60113187,1964.8,1964.3,0.0011]
[1772914758639,5.3277345,1964.6,1964.3,0.0011]
[1772914759822,5.3277345,1964.2,1964.0,0.00263886]
[1772914760017,5.09032497,1964.6,1964.0,5.34328419]
[1772914760018,5.3277345,1964.6,1964.0,5.34328419]
[1772914762032,5.3277345,1964.6,1964.2,5.34064533]
[1772914762233,6.60026221,1964.6,1964.2,5.34064533]
[1772914763340,6.60026221,1964.6,1964.0,0.00263886]
[1772914763516,6.60026221,1964.6,1964.0,6.61619478]
[1772914770146,6.60026221,1964.6,1964.1,5.34174533]
[1772914772871,6.60026221,1964.6,1964.1,6.61456401]
[1772914776337,5.3277345,1964.6,1964.1,6.61456401]
[1772914776738,6.60026227,1964.6,1964.1,6.61456401]
[1772914781754,6.60026227,1964.6,1964.2,5.32623341]
[1772914781957,0.001,1964.5,1964.2,5.32623341]
[1772914782254,4.96711689,1964.5,1964.2,5.32623341]
[1772914783751,4.96711689,1964.5,1964.2,6.59899125]
[1772914784724,0.001,1964.5,1964.2,6.59899125]
[1772914785255,0.001,1964.5,1964.2,5.32623341]
[1772914785454,4.96711689,1964.5,1964.2,5.32623341]
[1772914787234,4.96711689,1964.5,1964.2,6.5989876]
[1772914787438,4.96711689,1964.5,1964.2,5.32623341]
[1772914788049,6.23971403,1964.5,1964.2,0.0011]
[1772914788254,4.96611689,1964.4,1964.2,0.0011]
[1772914793056,4.96611689,1964.3,1964.2,0.0011]
[1772914794984,1.27271801,1964.3,1964.1,0.0011]
[1772914795133,4.96611689,1964.2,1964.0,0.00263886]
[1772914795669,4.96611689,1964.2,1963.9,0.0011]
[1772914795870,4.96611689,1964.0,1963.4,0.0011]
[1772914796055,4.96611689,1963.7,1963.1,0.0011]
[1772914796567,4.96611689,1963.5,1963.1,0.0011]
[1772914796731,4.96611689,1963.3,1963.1,0.0011]
[1772914797354,4.96611689,1963.3,1962.8,0.0011]
[1772914799675,4.96611689,1963.1,1962.8,0.0011]
[1772914801273,4.96611689,1963.1,1962.8,5.16826253]
[1772914801468,5.28499879,1963.2,1962.8,5.16826253]
[1772914802349,5.28499879,1963.2,1962.8,6.44193208]
[1772914804176,6.5584315,1963.2,1962.8,5.16826253]
[1772914804576,6.5584315,1963.2,1962.7,0.0011]
[1772914804577,5.29788401,1963.1,1962.7,0.0011]
[1772914805850,5.29788401,1963.1,1962.9,0.0011]
[1772914806057,6.57125398,1963.3,1962.9,4.98817346]
[1772914806379,6.57125398,1963.3,1962.9,0.0011]
[1772914806546,5.29788401,1963.0,1962.7,0.0011]
[1772914808178,6.57150976,1962.9,1962.7,0.0011]
[1772914810753,6.57150976,1962.9,1962.6,0.0011]
[1772914811788,5.29788401,1962.8,1962.2,4.98817346]
[1772914812279,5.29788401,1962.8,1962.2,0.0011]
[1772914812481,5.29788401,1962.6,1962.2,0.0011]
[1772914812680,5.29788401,1962.4,1962.0,0.00263886]
[1772914812869,5.29788401,1962.2,1962.0,0.00263886]
[1772914813956,6.5716706,1962.7,1962.0,4.98971232]
[1772914815191,5.29788401,1962.5,1962.0,0.00263886]
[1772914816685,5.29788401,1962.1,1961.8,0.0011]
[1772914817290,6.57208639,1962.1,1961.8,0.0011]
[1772914818280,6.57208639,1962.1,1961.7,0.0011]
[1772914818480,5.29788401,1962.0,1961.7,0.0011]
[1772914819289,5.29788401,1962.1,1961.7,4.98817346]
[1772914819489,5.29788401,1962.4,1962.0,4.98817346]
[1772914820791,5.29788401,1962.2,1962.0,0.0011]
[1772914822813,6.57197846,1962.2,1962.0,0.0011]
[1772914823310,5.29788401,1962.2,1962.0,0.0011]
[1772914824084,6.57198817,1962.2,1962.0,0.0011]
[1772914824799,6.57198817,1962.2,1961.8,0.0011]
[1772914829018,5.29788401,1962.2,1961.8,4.98817346]
[1772914829226,5.29788401,1962.3,1961.8,4.98817346]
[1772914830105,6.20768837,1962.3,1961.8,0.0011]
[1772914831037,6.20768837,1962.3,1961.9,0.0011]
[1772914831624,5.29788401,1962.1,1961.9,0.0011]
[1772914833627,4.79612972,1961.9,1961.8,0.0011]
[1772914836147,4.79612972,1961.8,1961.6,0.0011]
[1772914837506,6.07034235,1962.0,1961.6,0.0011]
[1772914837807,4.79712972,1962.2,1961.7,1.27440485]
[1772914838006,6.0712184,1962.2,1961.8,5.22841911]
[1772914838826,4.79612972,1962.1,1961.8,5.22841911]
[1772914839139,4.79612972,1962.1,1961.6,5.22362274]
[1772914839449,5.70593408,1962.1,1961.6,0.0011]
[1772914840243,4.79612972,1961.9,1961.6,0.0011]
[1772914843249,6.07046961,1961.8,1961.7,0.0011]
[1772914843450,4.79612972,1961.7,1961.1,6.47528163]
[1772914843833,4.79612972,1961.7,1961.5,0.0011]
[1772914844027,5.70593408,1961.7,1961.4,0.0011]
[1772914844233,5.70593408,1961.7,1961.0,6.47119767]
[1772914844434,5.70593408,1961.7,1961.0,6.47118704]
[1772914845159,4.79612972,1961.7,1961.0,6.47118704]
[1772914845474,8.09834707,1962.0,1961.0,6.47118704]
[1772914846066,6.82412972,1962.0,1961.0,6.47118704]
[1772914846761,4.79712972,1962.0,1961.0,6.47118704]
[1772914847923,4.79612972,1961.9,1961.0,6.47118704]
[1772914848265,5.70593408,1961.9,1961.2,5.17247369]
[1772914848433,5.70593408,1961.9,1961.0,6.44885861]
[1772914849763,4.79612972,1961.7,1961.0,6.44885861]
[1772914851756,1.27442861,1961.7,1961.0,6.44885861]
[1772914851964,4.79612972,1961.6,1961.0,6.44885861]
[1772914855510,4.79612972,1961.5,1961.0,6.44885861]
[1772914855665,4.79612972,1961.9,1961.2,5.12984018]
[1772914856186,0.001,1961.8,1961.2,5.12984018]
[1772914858771,0.001,1962.0,1961.4,5.10810957]
[1772914860790,0.001,1962.0,1961.6,4.73676951]
[1772914863870,0.001,1962.2,1961.8,5.03776624]
[1772914864072,5.05795379,1962.2,1961.8,5.03776624]
[1772914865645,0.001,1962.2,1961.8,5.03776624]
[1772914865850,0.001,1962.2,1962.0,5.03776624]
[1772914866085,0.001,1962.2,1961.9,1.27427493]
[1772914866386,5.05795379,1962.2,1961.8,1.27429705]
[1772914866801,5.05795379,1962.2,1961.8,6.31206329]
[1772914866991,5.05795379,1962.2,1961.9,5.03776624]
[1772914867799,5.05795379,1962.2,1961.9,6.31200711]
[1772914868190,0.001,1962.1,1961.9,6.31200711]
[1772914870097,5.05795379,1962.1,1961.8,1.27430038]
[1772914870296,5.05795379,1962.1,1961.8,6.31206662]
[1772914875008,0.001,1962.1,1961.9,4.97547451]
[1772914877000,0.001,1962.1,1961.9,6.24970937]
[1772914879014,0.001,1962.1,1962.0,4.90526708]
[1772914879812,0.001,1962.1,1962.0,6.17947706]
[1772914880014,0.001,1962.1,1962.0,4.90526708]
[1772914881075,0.001,1962.1,1961.9,1.27422663]
[1772914881282,0.001,1962.1,1961.9,4.86060513]
[1772914881483,0.001,1962.1,1962.0,6.13481511]
[1772914881678,5.05695379,1962.5,1962.1,4.85960513]
[1772914883897,5.05695379,1962.5,1962.2,1.27408011]
[1772914885219,5.05695379,1962.7,1962.3,4.78968083]
[1772914886083,5.05695379,1962.7,1962.3,9.88565277]
[1772914886317,5.05695379,1962.7,1962.3,6.06364719]
[1772914886692,5.05695379,1962.6,1962.1,6.02984789]
[1772914886994,5.05695379,1962.6,1962.0,1.2741582]
[1772914888085,6.3307991,1962.6,1962.0,4.739001]
[1772914888285,5.05695379,1962.5,1962.0,4.739001]
[1772914888889,5.05695379,1962.9,1962.1,4.72240927]
[1772914889597,5.05695379,1962.9,1962.3,4.72240927]
[1772914890209,5.05695379,1962.9,1962.5,4.70599647]
[1772914892828,5.05695379,1962.9,1962.6,1.27382044]
[1772914893042,0.001,1962.8,1962.6,1.27382044]
[1772914893215,0.001,1962.8,1962.7,4.64474521]
[1772914893531,0.00153886,1963.0,1962.7,4.64474521]
[1772914894917,0.00153886,1963.0,1962.7,5.91844418]
[1772914895810,4.51847547,1963.0,1962.3,5.87133531]
[1772914896005,4.51847547,1963.0,1962.4,4.59732013]
[1772914897521,4.51847547,1963.0,1962.5,5.85607343]
[1772914901932,0.00153886,1963.0,1962.6,4.50850211]
[1772914902916,0.001,1963.1,1962.6,4.49263596]
[1772914903923,0.001,1963.1,1962.8,4.47850241]
[1772914905011,1.27336768,1963.3,1962.7,1.27375554]
[1772914905012,0.00153886,1964.0,1962.9,4.46456218]